[Event "Snabbschacks-SM 2025"]
[Site "Norrköping, Sweden"]
[Date "2025.09.28"]
[Round "7.9"]
[White "Bjorklund, Thomas"]
[Black "Odell Johansson, Leo"]
[Result "1-0"]
[TimeControl "25 min + 10 sec/move"]
[WhiteElo "2103"]
[BlackElo "2025"]

1. e4 {[%clk 00:25:19]} c5 {[%clk 00:25:19]} {[%emt 00:00:02]} 2. c3 {[%clk
00:25:28]} Nf6 {[%clk 00:25:25]} {[%emt 00:00:04]} 3. e5 {[%clk 00:25:37]} Nd5
{[%clk 00:25:34]} 4. d4 {[%clk 00:25:46]} cxd4 {[%clk 00:25:43]} {[%emt
00:00:02]} 5. cxd4 {[%clk 00:25:55]} d6 {[%clk 00:24:54]} {[%emt 00:00:58]} 6.
exd6 {[%clk 00:26:04]} {[%emt 00:00:02]} e6 {[%clk 00:24:48]} {[%emt 00:00:16]}
7. Nc3 {[%clk 00:26:12]} {[%emt 00:00:02]} Bxd6 {[%clk 00:22:59]} {[%emt
00:01:59]} 8. Nf3 {[%clk 00:26:19]} {[%emt 00:00:02]} O-O {[%clk 00:22:40]}
{[%emt 00:00:29]} 9. Bd3 {[%clk 00:26:24]} {[%emt 00:00:05]} h6 {[%clk
00:20:24]} {[%emt 00:02:27]} 10. O-O {[%clk 00:25:38]} {[%emt 00:00:56]} Nc6
{[%clk 00:15:21]} {[%emt 00:05:13]} 11. Re1 {[%clk 00:24:26]} {[%emt 00:01:21]}
Nf4 {[%clk 00:03:56]} {[%emt 00:11:36]} 12. Bf1 {[%clk 00:23:11]} {[%emt
00:01:24]} b6 {[%clk 00:03:50]} {[%emt 00:00:17]} 13. g3 {[%clk 00:23:12]}
{[%emt 00:00:09]} Nd5 {[%clk 00:02:59]} {[%emt 00:01:01]} 14. Bg2 {[%clk
00:22:58]} {[%emt 00:00:23]} Bb7 {[%clk 00:02:52]} {[%emt 00:00:18]} 15. Nxd5
{[%clk 00:23:01]} {[%emt 00:00:07]} exd5 {[%clk 00:03:01]} {[%emt 00:00:01]} 16.
Qb3 {[%clk 00:22:36]} {[%emt 00:00:35]} Na5 {[%clk 00:01:11]} {[%emt 00:02:00]}
17. Qd3 {[%clk 00:22:19]} {[%emt 00:00:26]} Rc8 {[%clk 00:00:55]} {[%emt
00:00:27]} 18. b3 {[%clk 00:22:06]} {[%emt 00:00:23]} Bb4 {[%clk 00:00:56]}
{[%emt 00:00:08]} 19. Bd2 {[%clk 00:22:14]} {[%emt 00:00:02]} Nc6 {[%clk
00:00:53]} {[%emt 00:00:13]} 20. Rac1 {[%clk 00:22:12]} {[%emt 00:00:13]} Ba3
{[%clk 00:00:55]} {[%emt 00:00:08]} 21. Rc2 {[%clk 00:21:47]} {[%emt 00:00:34]}
Nb4 {[%clk 00:00:59]} {[%emt 00:00:07]} 22. Bxb4 {[%clk 00:21:54]} {[%emt
00:00:03]} Bxb4 {[%clk 00:01:08]} 23. Rec1 {[%clk 00:21:52]} {[%emt 00:00:12]}
Rxc2 {[%clk 00:01:16]} {[%emt 00:00:03]} 24. Qxc2 {[%clk 00:21:57]} {[%emt
00:00:05]} Qf6 {[%clk 00:01:09]} {[%emt 00:00:17]} 25. Ne5 {[%clk 00:21:40]}
{[%emt 00:00:27]} Qd6 {[%clk 00:01:02]} {[%emt 00:00:16]} 26. Qc7 {[%clk
00:21:24]} {[%emt 00:00:26]} f6 {[%clk 00:00:34]} {[%emt 00:00:39]} 27. Qxb7
{[%clk 00:21:18]} {[%emt 00:00:15]} fxe5 {[%clk 00:00:42]} {[%emt 00:00:02]} 28.
Qxd5+ {[%clk 00:21:26]} {[%emt 00:00:02]} Kh8 {[%clk 00:00:25]} {[%emt
00:00:27]} 29. Qxe5 {[%clk 00:21:18]} {[%emt 00:00:18]} Qxe5 {[%clk 00:00:15]}
{[%emt 00:00:20]} 30. dxe5 {[%clk 00:21:27]} {[%emt 00:00:02]} Bc5 {[%clk
00:00:21]} {[%emt 00:00:04]} 31. Rc2 {[%clk 00:21:35]} {[%emt 00:00:02]} Rf5
{[%clk 00:00:20]} {[%emt 00:00:11]} 32. Re2 {[%clk 00:21:39]} {[%emt 00:00:06]}
Kg8 {[%clk 00:00:24]} {[%emt 00:00:05]} 33. Bd5+ {[%clk 00:21:42]} {[%emt
00:00:07]} Kf8 {[%clk 00:00:32]} 34. Kg2 {[%clk 00:21:49]} {[%emt 00:00:04]} g5
{[%clk 00:00:35]} {[%emt 00:00:08]} 35. Bc4 {[%clk 00:21:53]} {[%emt 00:00:07]}
Ke7 {[%clk 00:00:44]} 36. e6 {[%clk 00:22:02]} {[%emt 00:00:02]} Rf6 {[%clk
00:00:45]} {[%emt 00:00:09]} 37. f3 {[%clk 00:22:08]} {[%emt 00:00:04]} Ba3
{[%clk 00:00:35]} {[%emt 00:00:20]} 38. Rd2 {[%clk 00:22:13]} {[%emt 00:00:04]}
Bd6 {[%clk 00:00:39]} {[%emt 00:00:06]} 39. a4 {[%clk 00:22:21]} {[%emt
00:00:03]} Rf5 {[%clk 00:00:41]} {[%emt 00:00:07]} 40. Rd3 {[%clk 00:22:17]}
{[%emt 00:00:14]} Re5 {[%clk 00:00:35]} {[%emt 00:00:16]} 41. Kf1 {[%clk
00:22:21]} {[%emt 00:00:06]} a6 {[%clk 00:00:39]} {[%emt 00:00:07]} 42. h3
{[%clk 00:21:25]} {[%emt 00:01:05]} b5 {[%clk 00:00:46]} {[%emt 00:00:03]} 43.
axb5 {[%clk 00:21:34]} {[%emt 00:00:01]} axb5 {[%clk 00:00:55]} 44. Bd5 {[%clk
00:21:42]} {[%emt 00:00:01]} Bb4 {[%clk 00:00:31]} {[%emt 00:00:34]} 45. Kf2
{[%clk 00:20:54]} {[%emt 00:00:58]} Kd6 {[%clk 00:00:22]} {[%emt 00:00:18]} 46.
f4 {[%clk 00:19:32]} {[%emt 00:01:34]} Rxd5 {[%clk 00:00:15]} {[%emt 00:00:17]}
47. e7 {[%clk 00:19:40]} {[%emt 00:00:01]} Rxd3 {[%clk 00:00:15]} {[%emt
00:00:10]} 48. e8=Q {[%clk 00:19:46]} {[%emt 00:00:03]} Rxb3 {[%clk 00:00:14]}
{[%emt 00:00:13]} 49. Qd8+ {[%clk 00:19:30]} {[%emt 00:00:25]} Kc5 {[%clk
00:00:20]} {[%emt 00:00:04]} 50. fxg5 {[%clk 00:19:32]} {[%emt 00:00:08]} hxg5
{[%clk 00:00:25]} {[%emt 00:00:05]} 51. Qxg5+ {[%clk 00:19:40]} {[%emt
00:00:02]} Kc4 {[%clk 00:00:34]} 52. Qg8+ {[%clk 00:19:32]} {[%emt 00:00:18]}
Kc3 {[%clk 00:00:41]} {[%emt 00:00:03]} 53. h4 {[%clk 00:19:41]} {[%emt
00:00:02]} Bc5+ {[%clk 00:00:46]} {[%emt 00:00:05]} 54. Kg2 {[%clk 00:19:47]}
{[%emt 00:00:04]} b4 {[%clk 00:00:50]} {[%emt 00:00:07]} 55. h5 {[%clk
00:19:54]} {[%emt 00:00:02]} Rb2+ {[%clk 00:00:57]} {[%emt 00:00:04]} 56. Kh3
{[%clk 00:20:01]} {[%emt 00:00:03]} Bd4 {[%clk 00:01:02]} {[%emt 00:00:05]} 57.
h6 {[%clk 00:20:07]} {[%emt 00:00:04]} b3 {[%clk 00:01:07]} {[%emt 00:00:04]}
58. h7 {[%clk 00:20:12]} {[%emt 00:00:05]} Rb1 {[%clk 00:01:15]} {[%emt
00:00:02]} 59. Kg2 {[%clk 00:20:01]} {[%emt 00:00:21]} Rb2+ {[%clk 00:00:14]}
{[%emt 00:01:11]} 60. Kh1 {[%clk 00:19:34]} {[%emt 00:00:37]} Rb1+ {[%clk
00:00:22]} {[%emt 00:00:03]} 61. Kh2 {[%clk 00:19:43]} {[%emt 00:00:01]} b2
{[%clk 00:00:24]} {[%emt 00:00:08]} 62. Qd5 {[%clk 00:16:35]} {[%emt 00:03:17]}
Rd1 {[%clk 00:00:14]} {[%emt 00:00:20]} 63. Qa5+ {[%clk 00:13:57]} {[%emt
00:02:49]} Kc2 {[%clk 00:00:13]} {[%emt 00:00:10]} 64. Qa4+ {[%clk 00:13:53]}
{[%emt 00:00:14]} 1-0

[Event "Snabbschacks-SM 2025"]
[Site "Norrköping, Sweden"]
[Date "2025.09.28"]
[Round "9.5"]
[White "Ask, Josef"]
[Black "Wernberg, Hugo"]
[Result "0-1"]
[TimeControl "25 min + 10 sec/move"]
[WhiteTitle "FM"]
[BlackTitle "FM"]
[WhiteElo "2047"]
[BlackElo "2285"]

1. g4 {[%clk 00:25:18]} {[%emt 00:00:01]} d5 {[%clk 00:25:19]} {[%emt
00:00:02]} 2. h3 {[%clk 00:25:26]} {[%emt 00:00:02]} e5 {[%clk 00:24:17]}
{[%emt 00:01:12]} 3. d4 {[%clk 00:25:33]} {[%emt 00:00:03]} exd4 {[%clk
00:24:11]} {[%emt 00:00:17]} 4. Nf3 {[%clk 00:25:40]} {[%emt 00:00:02]} Bb4+
{[%clk 00:23:37]} {[%emt 00:00:43]} 5. c3 {[%clk 00:25:18]} {[%emt 00:00:33]}
dxc3 {[%clk 00:23:44]} {[%emt 00:00:03]} 6. Nxc3 {[%clk 00:25:22]} {[%emt
00:00:06]} Ne7 {[%clk 00:23:18]} {[%emt 00:00:35]} 7. Bg2 {[%clk 00:25:19]}
{[%emt 00:00:13]} O-O {[%clk 00:23:20]} {[%emt 00:00:08]} 8. O-O {[%clk
00:25:23]} {[%emt 00:00:07]} b6 {[%clk 00:20:13]} {[%emt 00:03:16]} 9. Qc2
{[%clk 00:25:21]} {[%emt 00:00:12]} Bb7 {[%clk 00:19:12]} {[%emt 00:01:11]} 10.
Ng5 {[%clk 00:24:39]} {[%emt 00:00:53]} Ng6 {[%clk 00:19:00]} {[%emt 00:00:21]}
11. Rd1 {[%clk 00:24:38]} {[%emt 00:00:10]} c6 {[%clk 00:18:50]} {[%emt
00:00:21]} 12. e4 {[%clk 00:21:01]} {[%emt 00:03:47]} h6 {[%clk 00:16:59]}
{[%emt 00:02:01]} 13. exd5 {[%clk 00:20:59]} {[%emt 00:00:13]} Qc8 {[%clk
00:14:16]} {[%emt 00:02:52]} 14. Ne6 {[%clk 00:19:45]} {[%emt 00:01:25]} fxe6
{[%clk 00:12:35]} {[%emt 00:01:50]} 15. Qxg6 {[%clk 00:19:46]} {[%emt
00:00:10]} Rf6 {[%clk 00:12:21]} {[%emt 00:00:24]} 16. Qh5 {[%clk 00:17:46]}
{[%emt 00:02:11]} exd5 {[%clk 00:11:44]} {[%emt 00:00:46]} 17. Re1 {[%clk
00:16:55]} {[%emt 00:01:01]} Na6 {[%clk 00:10:58]} {[%emt 00:00:56]} 18. Be3
{[%clk 00:15:20]} {[%emt 00:01:45]} Bc5 {[%clk 00:10:31]} {[%emt 00:00:36]} 19.
Bxc5 {[%clk 00:14:32]} {[%emt 00:00:59]} Nxc5 {[%clk 00:10:07]} {[%emt
00:00:34]} 20. Re7 {[%clk 00:14:22]} {[%emt 00:00:20]} Qf8 {[%clk 00:08:43]}
{[%emt 00:01:34]} 21. Rxb7 {[%clk 00:07:01]} {[%emt 00:07:31]} Nxb7 {[%clk
00:08:50]} {[%emt 00:00:03]} 22. Nxd5 {[%clk 00:05:44]} {[%emt 00:01:28]} cxd5
{[%clk 00:08:45]} {[%emt 00:00:14]} 23. Bxd5+ {[%clk 00:05:53]} {[%emt
00:00:02]} Kh8 {[%clk 00:08:46]} {[%emt 00:00:08]} 24. Bxb7 {[%clk 00:05:35]}
{[%emt 00:00:28]} Re8 {[%clk 00:08:35]} {[%emt 00:00:21]} 25. Rc1 {[%clk
00:04:55]} {[%emt 00:00:50]} Re2 {[%clk 00:04:59]} {[%emt 00:03:46]} 26. f3
{[%clk 00:03:05]} {[%emt 00:02:00]} Rxf3 {[%clk 00:04:04]} {[%emt 00:01:05]} 27.
g5 {[%clk 00:02:36]} {[%emt 00:00:39]} Rfe3 {[%clk 00:02:54]} {[%emt 00:01:19]}
28. Qh4 {[%clk 00:01:30]} {[%emt 00:01:16]} Qd6 {[%clk 00:02:48]} {[%emt
00:00:16]} 29. Bg2 {[%clk 00:00:38]} {[%emt 00:01:03]} Rxg2+ {[%clk 00:02:47]}
{[%emt 00:00:11]} 30. Kxg2 {[%clk 00:00:46]} {[%emt 00:00:02]} Qd2+ {[%clk
00:02:55]} 31. Qf2 {[%clk 00:00:51]} {[%emt 00:00:06]} Re2 {[%clk 00:03:04]}
{[%emt 00:00:01]} 32. Rc8+ {[%clk 00:00:26]} {[%emt 00:00:36]} Kh7 {[%clk
00:03:12]} {[%emt 00:00:01]} 33. g6+ {[%clk 00:00:31]} {[%emt 00:00:05]} Kxg6
{[%clk 00:03:20]} {[%emt 00:00:02]} 0-1

[Event "Snabbschacks-SM 2025"]
[Site "Norrköping, Sweden"]
[Date "2025.09.28"]
[Round "6.4"]
[White "Olsson, Linus"]
[Black "Lilliehook, Victor"]
[Result "0-1"]
[TimeControl "25 min + 10 sec/move"]
[WhiteTitle "FM"]
[WhiteElo "2166"]
[BlackElo "2136"]

1. d4 {[%clk 00:25:17]} {[%emt 00:00:02]} d5 {[%clk 00:25:19]} 2. c4 {[%clk
00:25:25]} {[%emt 00:00:02]} e6 {[%clk 00:25:27]} {[%emt 00:00:02]} 3. Nf3
{[%clk 00:25:32]} {[%emt 00:00:03]} Nf6 {[%clk 00:25:36]} {[%emt 00:00:01]} 4.
g3 {[%clk 00:25:39]} {[%emt 00:00:03]} dxc4 {[%clk 00:25:43]} {[%emt 00:00:03]}
5. Bg2 {[%clk 00:25:45]} {[%emt 00:00:04]} Bb4+ {[%clk 00:25:51]} {[%emt
00:00:02]} 6. Bd2 {[%clk 00:24:36]} {[%emt 00:01:20]} a5 {[%clk 00:25:52]}
{[%emt 00:00:09]} 7. Na3 {[%clk 00:22:44]} {[%emt 00:02:02]} Bxa3 {[%clk
00:24:40]} {[%emt 00:01:21]} 8. bxa3 {[%clk 00:22:10]} {[%emt 00:00:44]} b5
{[%clk 00:19:54]} {[%emt 00:04:55]} 9. Qc2 {[%clk 00:20:07]} {[%emt 00:02:14]}
Bb7 {[%clk 00:18:24]} {[%emt 00:01:40]} 10. a4 {[%clk 00:19:13]} {[%emt
00:01:04]} Be4 {[%clk 00:16:00]} {[%emt 00:02:35]} 11. Qc1 {[%clk 00:18:59]}
{[%emt 00:00:24]} c6 {[%clk 00:15:40]} {[%emt 00:00:29]} 12. axb5 {[%clk
00:18:31]} {[%emt 00:00:38]} cxb5 {[%clk 00:15:47]} {[%emt 00:00:03]} 13. a4
{[%clk 00:18:32]} {[%emt 00:00:09]} b4 {[%clk 00:11:16]} {[%emt 00:04:41]} 14.
Qxc4 {[%clk 00:18:35]} {[%emt 00:00:07]} O-O {[%clk 00:11:22]} {[%emt
00:00:04]} 15. O-O {[%clk 00:16:15]} {[%emt 00:02:29]} Nc6 {[%clk 00:08:26]}
{[%emt 00:03:07]} 16. e3 {[%clk 00:14:51]} {[%emt 00:01:34]} Rb8 {[%clk
00:05:37]} {[%emt 00:02:59]} 17. Bc1 {[%clk 00:14:18]} {[%emt 00:00:43]} b3
{[%clk 00:04:20]} {[%emt 00:01:28]} 18. Bb2 {[%clk 00:14:17]} {[%emt 00:00:10]}
Nb4 {[%clk 00:03:56]} {[%emt 00:00:34]} 19. Ne5 {[%clk 00:13:10]} {[%emt
00:01:17]} Bc2 {[%clk 00:02:54]} {[%emt 00:01:13]} 20. Rfe1 {[%clk 00:11:18]}
{[%emt 00:02:01]} Nd7 {[%clk 00:01:30]} {[%emt 00:01:34]} 21. Nc6 {[%clk
00:08:39]} {[%emt 00:02:49]} Rc8 {[%clk 00:00:45]} {[%emt 00:00:56]} 22. Qxb4
{[%clk 00:07:40]} {[%emt 00:01:09]} Rxc6 {[%clk 00:00:25]} {[%emt 00:00:30]} 23.
Qb5 {[%clk 00:06:10]} {[%emt 00:01:39]} Rc8 {[%clk 00:00:15]} {[%emt 00:00:20]}
24. e4 {[%clk 00:05:25]} {[%emt 00:00:55]} Nb6 {[%clk 00:00:14]} {[%emt
00:00:12]} 25. Bf1 {[%clk 00:05:08]} {[%emt 00:00:27]} Ra8 {[%clk 00:00:12]}
{[%emt 00:00:12]} 26. Bd3 {[%clk 00:03:28]} {[%emt 00:01:49]} Qc7 {[%clk
00:00:14]} {[%emt 00:00:08]} 27. Rec1 {[%clk 00:03:15]} {[%emt 00:00:23]} Rfc8
{[%clk 00:00:13]} {[%emt 00:00:11]} 28. Ra3 {[%clk 00:02:45]} {[%emt 00:00:40]}
Nc4 {[%clk 00:00:12]} {[%emt 00:00:11]} 29. Rxb3 {[%clk 00:01:25]} {[%emt
00:01:30]} Bxd3 {[%clk 00:00:18]} {[%emt 00:00:04]} 30. Rxd3 {[%clk 00:01:20]}
{[%emt 00:00:15]} Rab8 {[%clk 00:00:25]} {[%emt 00:00:03]} 31. Rdc3 {[%clk
00:00:32]} {[%emt 00:00:57]} Rxb5 {[%clk 00:00:17]} {[%emt 00:00:18]} 32. axb5
{[%clk 00:00:39]} {[%emt 00:00:03]} a4 {[%clk 00:00:13]} {[%emt 00:00:14]} 33.
Rxc4 {[%clk 00:00:45]} {[%emt 00:00:04]} Qxc4 {[%clk 00:00:20]} {[%emt
00:00:03]} 34. Rxc4 {[%clk 00:00:50]} {[%emt 00:00:06]} Rxc4 {[%clk 00:00:29]}
35. Kf1 {[%clk 00:00:16]} {[%emt 00:00:45]} Rb4 {[%clk 00:00:37]} {[%emt
00:00:02]} 36. Ba3 {[%clk 00:00:22]} {[%emt 00:00:04]} Rxb5 {[%clk 00:00:46]}
{[%emt 00:00:02]} 37. Ke2 {[%clk 00:00:29]} {[%emt 00:00:02]} Rb3 {[%clk
00:00:52]} {[%emt 00:00:03]} 38. Bc5 {[%clk 00:00:28]} {[%emt 00:00:11]} a3
{[%clk 00:00:58]} {[%emt 00:00:05]} 39. d5 {[%clk 00:00:35]} {[%emt 00:00:02]}
exd5 {[%clk 00:00:54]} {[%emt 00:00:14]} 40. exd5 {[%clk 00:00:43]} {[%emt
00:00:02]} a2 {[%clk 00:01:02]} {[%emt 00:00:01]} 41. Bd4 {[%clk 00:00:50]}
{[%emt 00:00:04]} Rb5 {[%clk 00:01:04]} {[%emt 00:00:08]} 0-1

[Event "Snabbschacks-SM 2025"]
[Site "Norrköping, Sweden"]
[Date "2025.09.28"]
[Round "7.10"]
[White "Dingertz, Filip"]
[Black "Olsson, Simon"]
[Result "1/2-1/2"]
[TimeControl "25 min + 10 sec/move"]
[WhiteElo "2049"]
[BlackElo "2068"]

1. Nf3 {[%clk 00:25:18]} {[%emt 00:00:02]} d5 {[%clk 00:25:17]} {[%emt
00:00:03]} 2. e3 {[%clk 00:25:27]} Nf6 {[%clk 00:24:23]} {[%emt 00:01:05]} 3.
b3 {[%clk 00:25:32]} {[%emt 00:00:04]} g6 {[%clk 00:24:02]} {[%emt 00:00:31]} 4.
Bb2 {[%clk 00:25:30]} {[%emt 00:00:12]} Bg7 {[%clk 00:24:11]} {[%emt 00:00:02]}
5. c4 {[%clk 00:25:27]} {[%emt 00:00:12]} c6 {[%clk 00:24:09]} {[%emt
00:00:12]} 6. Nc3 {[%clk 00:25:13]} {[%emt 00:00:24]} O-O {[%clk 00:24:14]}
{[%emt 00:00:06]} 7. Be2 {[%clk 00:25:15]} {[%emt 00:00:05]} Nbd7 {[%clk
00:20:57]} {[%emt 00:03:29]} 8. d4 {[%clk 00:25:05]} {[%emt 00:00:19]} Re8
{[%clk 00:20:18]} {[%emt 00:00:50]} 9. O-O {[%clk 00:25:01]} {[%emt 00:00:14]}
Ne4 {[%clk 00:19:23]} {[%emt 00:01:06]} 10. Nxe4 {[%clk 00:22:25]} {[%emt
00:02:46]} dxe4 {[%clk 00:19:31]} {[%emt 00:00:01]} 11. Ng5 {[%clk 00:21:25]}
{[%emt 00:01:10]} Nf6 {[%clk 00:19:05]} {[%emt 00:00:37]} 12. f3 {[%clk
00:21:17]} {[%emt 00:00:18]} exf3 {[%emt 00:00:58]} 13. Bxf3 {[%clk 00:20:18]}
{[%emt 00:00:38]} h6 {[%clk 00:11:08]} {[%emt 00:07:50]} 14. Ne4 {[%clk
00:20:05]} {[%emt 00:00:22]} Nxe4 {[%clk 00:11:11]} {[%emt 00:00:07]} 15. Bxe4
{[%clk 00:20:14]} {[%emt 00:00:01]} f5 {[%clk 00:11:20]} 16. Bc2 {[%clk
00:18:19]} {[%emt 00:02:04]} e6 {[%clk 00:11:14]} {[%emt 00:00:17]} 17. Qf3
{[%clk 00:17:56]} {[%emt 00:00:33]} Qc7 {[%clk 00:08:52]} {[%emt 00:02:32]} 18.
e4 {[%clk 00:17:00]} {[%emt 00:01:05]} Bd7 {[%clk 00:07:19]} {[%emt 00:01:45]}
19. Rad1 {[%clk 00:16:50]} {[%emt 00:00:18]} Rad8 {[%clk 00:07:24]} {[%emt
00:00:05]} 20. g4 {[%clk 00:15:53]} {[%emt 00:01:07]} Rf8 {[%clk 00:06:55]}
{[%emt 00:00:40]} 21. exf5 {[%clk 00:15:36]} {[%emt 00:00:27]} exf5 {[%clk
00:07:01]} {[%emt 00:00:03]} 22. gxf5 {[%clk 00:15:42]} {[%emt 00:00:04]} Bxf5
{[%clk 00:07:06]} {[%emt 00:00:05]} 23. Bxf5 {[%clk 00:14:40]} {[%emt
00:01:13]} Rxf5 {[%clk 00:07:10]} {[%emt 00:00:06]} 24. Qe4 {[%clk 00:14:48]}
Rdf8 {[%clk 00:05:46]} {[%emt 00:01:35]} 25. Rxf5 {[%clk 00:14:15]} {[%emt
00:00:42]} Rxf5 {[%clk 00:05:53]} {[%emt 00:00:03]} 26. Rf1 {[%clk 00:10:08]}
{[%emt 00:04:17]} Rxf1+ {[%clk 00:05:23]} {[%emt 00:00:40]} 27. Kxf1 {[%clk
00:10:17]} Qxh2 {[%clk 00:05:24]} {[%emt 00:00:09]} 28. Qxg6 {[%clk 00:09:59]}
{[%emt 00:00:29]} Qxb2 {[%clk 00:04:05]} {[%emt 00:01:29]} 29. Qe8+ {[%clk
00:10:07]} Kh7 {[%clk 00:04:13]} {[%emt 00:00:01]} 30. Qe4+ {[%clk 00:10:16]}
Kg8 {[%clk 00:04:03]} {[%emt 00:00:22]} 31. Qe8+ {[%clk 00:10:25]} {[%emt
00:00:01]} Bf8 {[%clk 00:03:47]} {[%emt 00:00:26]} 32. Qe6+ {[%clk 00:10:23]}
{[%emt 00:00:12]} Kh8 {[%clk 00:03:32]} {[%emt 00:00:26]} 33. Qe5+ {[%clk
00:10:28]} {[%emt 00:00:05]} Bg7 {[%clk 00:03:36]} {[%emt 00:00:06]} 34. Qe8+
{[%clk 00:10:35]} {[%emt 00:00:04]} Kh7 {[%clk 00:03:41]} {[%emt 00:00:05]} 35.
Qe4+ {[%clk 00:09:57]} {[%emt 00:00:46]} Kg8 {[%clk 00:03:50]} {[%emt
00:00:02]} 1/2-1/2

[Event "Snabbschacks-SM 2025"]
[Site "Norrköping, Sweden"]
[Date "2025.09.28"]
[Round "9.6"]
[White "Angskog, Kent"]
[Black "Bohman Karlholm, Adrian"]
[Result "1/2-1/2"]
[TimeControl "25 min + 10 sec/move"]
[WhiteElo "2118"]
[BlackElo "2102"]

1. Nf3 {[%clk 00:25:17]} {[%emt 00:00:02]} d5 {[%clk 00:25:16]} {[%emt
00:00:04]} 2. c4 {[%clk 00:25:20]} {[%emt 00:00:06]} e6 {[%clk 00:25:20]}
{[%emt 00:00:07]} 3. g3 {[%clk 00:25:25]} {[%emt 00:00:06]} Nf6 {[%clk
00:25:22]} {[%emt 00:00:08]} 4. Bg2 {[%clk 00:25:32]} {[%emt 00:00:02]} c5
{[%clk 00:25:20]} {[%emt 00:00:12]} 5. cxd5 {[%clk 00:25:28]} {[%emt 00:00:14]}
exd5 {[%clk 00:25:26]} {[%emt 00:00:04]} 6. d4 {[%clk 00:25:31]} {[%emt
00:00:08]} Nc6 {[%clk 00:25:16]} {[%emt 00:00:19]} 7. O-O {[%clk 00:25:32]}
{[%emt 00:00:09]} c4 {[%clk 00:24:41]} {[%emt 00:00:45]} 8. Ne5 {[%clk
00:21:38]} {[%emt 00:04:04]} Bd6 {[%clk 00:23:38]} {[%emt 00:01:13]} 9. Nxc6
{[%clk 00:20:03]} {[%emt 00:01:45]} bxc6 {[%clk 00:23:45]} {[%emt 00:00:03]} 10.
b3 {[%clk 00:19:40]} {[%emt 00:00:33]} cxb3 {[%clk 00:23:15]} {[%emt 00:00:40]}
11. axb3 {[%clk 00:19:24]} {[%emt 00:00:26]} O-O {[%clk 00:22:56]} {[%emt
00:00:29]} 12. Bg5 {[%clk 00:16:28]} {[%emt 00:03:05]} h6 {[%clk 00:22:22]}
{[%emt 00:00:45]} 13. Bxf6 {[%clk 00:16:01]} {[%emt 00:00:37]} Qxf6 {[%clk
00:22:28]} {[%emt 00:00:03]} 14. e3 {[%clk 00:15:16]} {[%emt 00:00:56]} a5
{[%clk 00:21:00]} {[%emt 00:01:38]} 15. Qc2 {[%clk 00:13:41]} {[%emt 00:01:44]}
Ba6 {[%clk 00:19:38]} {[%emt 00:01:33]} 16. Rc1 {[%clk 00:13:36]} {[%emt
00:00:15]} Bb4 {[%clk 00:19:26]} {[%emt 00:00:22]} 17. Nc3 {[%clk 00:11:58]}
{[%emt 00:01:48]} Rfb8 {[%clk 00:15:15]} {[%emt 00:04:21]} 18. Na4 {[%clk
00:09:46]} {[%emt 00:02:21]} Bb5 {[%clk 00:14:19]} {[%emt 00:01:08]} 19. Nc5
{[%clk 00:09:17]} {[%emt 00:00:38]} Qd6 {[%clk 00:13:18]} {[%emt 00:01:11]} 20.
Qf5 {[%clk 00:05:27]} {[%emt 00:04:00]} g6 {[%clk 00:12:06]} {[%emt 00:01:22]}
21. Qh3 {[%clk 00:03:26]} {[%emt 00:02:11]} Kg7 {[%clk 00:11:34]} {[%emt
00:00:42]} 22. Qh4 {[%clk 00:02:28]} {[%emt 00:01:08]} Ra7 {[%clk 00:10:30]}
{[%emt 00:01:15]} 23. Qf4 {[%clk 00:01:43]} {[%emt 00:00:54]} Qxf4 {[%clk
00:06:36]} {[%emt 00:04:05]} 24. gxf4 {[%clk 00:01:47]} {[%emt 00:00:06]} Kf8
{[%clk 00:06:32]} {[%emt 00:00:13]} 25. h4 {[%clk 00:00:56]} {[%emt 00:01:01]}
Ke7 {[%clk 00:06:28]} {[%emt 00:00:14]} 26. Kh2 {[%clk 00:00:40]} {[%emt
00:00:25]} h5 {[%clk 00:05:55]} {[%emt 00:00:44]} 27. Kg3 {[%clk 00:00:43]}
{[%emt 00:00:07]} Kd6 {[%clk 00:04:55]} {[%emt 00:01:10]} 28. Bf3 {[%clk
00:00:30]} {[%emt 00:00:23]} Ba6 {[%clk 00:03:40]} {[%emt 00:01:25]} 29. Bd1
{[%clk 00:00:29]} {[%emt 00:00:10]} Bc8 {[%clk 00:03:40]} {[%emt 00:00:10]} 30.
Ra2 {[%clk 00:00:15]} {[%emt 00:00:24]} Bf5 {[%clk 00:03:30]} {[%emt 00:00:20]}
31. Bc2 {[%clk 00:00:13]} {[%emt 00:00:13]} Rg8 {[%clk 00:02:20]} {[%emt
00:01:19]} 32. Kh2 {[%clk 00:00:13]} {[%emt 00:00:10]} Bc8 {[%clk 00:01:44]}
{[%emt 00:00:46]} 33. Bd3 {[%clk 00:00:22]} {[%emt 00:00:02]} Re8 {[%clk
00:01:40]} {[%emt 00:00:13]} 34. Kg3 {[%clk 00:00:25]} {[%emt 00:00:07]}
1/2-1/2